bitfinex-derivatives/quotes_BTCF0:USTF0_20250905
["timestamp","ask_amount","ask_price","bid_price","bid_amount"]
[1757052536989,0.02238,111600.0,111590.0,0.43148174]
[1757052537194,0.02238,111600.0,111590.0,0.43248174]
[1757052537794,0.02238,111600.0,111590.0,0.43348174]
[1757052538988,0.03607,111600.0,111590.0,0.42445365]
[1757052540095,0.03607,111600.0,111590.0,0.42345365]
[1757052540296,0.03707,111600.0,111590.0,0.42345365]
[1757052540498,0.03707,111600.0,111590.0,0.42245365]
[1757052540796,0.03707,111600.0,111590.0,0.06165365]
[1757052541801,0.03607,111600.0,111590.0,0.88021365]
[1757052541994,0.03607,111600.0,111590.0,0.88121365]
[1757052543002,0.03607,111600.0,111590.0,0.88021365]
[1757052543203,0.03607,111600.0,111590.0,0.88121365]
[1757052543603,0.03607,111600.0,111590.0,0.88021365]
[1757052543803,0.03607,111600.0,111590.0,0.88121365]
[1757052544408,0.02238,111600.0,111590.0,0.88121365]
[1757052544607,0.02238,111600.0,111590.0,1.24201365]
[1757052544906,0.02238,111600.0,111590.0,0.88121365]
[1757052546207,0.03607,111600.0,111590.0,0.88121365]
[1757052549705,0.88181354,111600.0,111590.0,0.02764365]
[1757052549896,0.88181354,111600.0,111590.0,0.00648]
[1757052550097,1.93399708,111600.0,111590.0,0.00648]
[1757052551111,1.93399708,111600.0,111590.0,0.00548]
[1757052551311,1.93499708,111600.0,111590.0,0.00548]
[1757052551511,1.93499708,111600.0,111590.0,0.00448]
[1757052551812,1.93699708,111600.0,111590.0,0.00448]
[1757052555313,1.11975708,111600.0,111590.0,0.00448]
[1757052555514,1.93695708,111600.0,111590.0,0.00448]
[1757052557414,1.99582214,111600.0,111590.0,0.00448]
[1757052573134,1.74582214,111600.0,111590.0,0.00448]
[1757052575238,0.92862214,111600.0,111590.0,0.00448]
[1757052575434,1.74486214,111600.0,111590.0,0.00448]
[1757052576641,0.03494,111580.0,111570.0,0.02101788]
[1757052576840,1.47635607,111580.0,111570.0,0.02101788]
[1757052577345,1.47635607,111580.0,111570.0,0.04345788]
[1757052577638,1.47635607,111580.0,111570.0,0.04445788]
[1757052577839,1.47635607,111580.0,111570.0,0.04545788]
[1757052580335,0.39574,111580.0,111570.0,0.04545788]
[1757052580537,0.66011607,111580.0,111570.0,0.04545788]
[1757052584242,0.38223,111580.0,111570.0,0.66870788]
[1757052584751,0.66011607,111580.0,111570.0,0.30870788]
[1757052585344,0.38223,111580.0,111570.0,0.30870788]
[1757052585538,0.01294,111620.0,111600.0,0.01283]
[1757052585739,0.02233,111620.0,111610.0,0.75076077]
[1757052585943,0.02233,111630.0,111620.0,0.1255766]
[1757052586148,0.66044607,111640.0,111630.0,0.036]
[1757052586351,0.38313,111640.0,111630.0,0.38994467]
[1757052586546,0.64750607,111640.0,111630.0,0.38994467]
[1757052586746,0.28670607,111640.0,111630.0,0.38994467]
[1757052587047,0.64750607,111650.0,111640.0,0.036]
[1757052587241,0.64750607,111650.0,111640.0,0.10672751]
[1757052587446,0.64750607,111650.0,111640.0,0.036]
[1757052588149,0.64850607,111650.0,111640.0,0.036]
[1757052589153,0.28770607,111650.0,111640.0,0.036]
[1757052590053,0.66144607,111650.0,111640.0,0.02317]
[1757052590250,0.03527,111640.0,111630.0,0.02321]
[1757052590458,0.29974607,111640.0,111630.0,0.02321]
[1757052590652,0.66044607,111640.0,111630.0,0.02321]
[1757052590849,0.29964607,111640.0,111630.0,0.02321]
[1757052591159,0.29964607,111640.0,111630.0,0.09389379]
[1757052591360,0.30064607,111640.0,111630.0,0.09389379]
[1757052591652,0.30074607,111640.0,111630.0,0.09389379]
[1757052592354,0.66154607,111640.0,111630.0,0.09389379]
[1757052592655,0.30064607,111640.0,111630.0,0.09389379]
[1757052592854,0.66144607,111640.0,111630.0,0.09389379]
[1757052593042,0.66154607,111640.0,111630.0,0.09389379]
[1757052594950,0.30074607,111640.0,111630.0,0.09389379]
[1757052596148,0.30074607,111640.0,111630.0,0.37109986]
[1757052597654,0.30074607,111640.0,111630.0,0.10672379]
[1757052599757,0.30074607,111640.0,111630.0,0.09389379]
[1757052599958,0.30074607,111640.0,111630.0,0.07072379]
[1757052600258,0.30074607,111640.0,111630.0,0.09389379]
[1757052603457,0.66154607,111640.0,111630.0,0.09389379]
[1757052606565,0.30074607,111640.0,111630.0,0.09389379]
[1757052609354,0.03637,111640.0,111630.0,0.09389379]
[1757052609555,0.66154607,111640.0,111630.0,0.09389379]
[1757052618465,0.66154607,111640.0,111630.0,0.10723379]
[1757052619068,0.66154607,111640.0,111630.0,0.09389379]
[1757052619463,0.63191829,111640.0,111630.0,0.09389379]
[1757052622674,0.63181829,111640.0,111630.0,0.09389379]
[1757052622973,0.63191829,111640.0,111630.0,0.09389379]
[1757052624374,0.39717,111640.0,111630.0,0.09389379]
[1757052624872,0.63191829,111640.0,111630.0,0.09389379]
[1757052626074,0.27111829,111640.0,111630.0,0.09389379]
[1757052626274,0.63191829,111640.0,111630.0,0.09389379]
[1757052628075,1.14144833,111640.0,111630.0,4e-05]
[1757052628278,1.50224833,111640.0,111630.0,4e-05]
[1757052635381,1.47746658,111640.0,111630.0,4e-05]
[1757052639383,0.01397,111620.0,111610.0,0.0711049]
[1757052639583,0.01397,111610.0,111600.0,0.36084]
[1757052639782,0.27070829,111610.0,111600.0,0.38221]
[1757052640288,0.03596,111610.0,111600.0,0.38221]
[1757052640988,0.03596,111610.0,111600.0,0.38521]
[1757052641490,0.03396,111610.0,111600.0,0.38521]
[1757052642177,0.03396,111610.0,111600.0,0.38621]
[1757052642687,0.03396,111610.0,111600.0,0.45825289]
[1757052643090,0.03396,111610.0,111600.0,0.45625289]
[1757052643485,0.03396,111610.0,111600.0,0.45621289]
[1757052644184,0.26870829,111610.0,111600.0,0.45621289]
[1757052645992,0.26870829,111610.0,111600.0,0.47621289]
[1757052649597,0.62960829,111610.0,111600.0,0.11541289]
[1757052649799,0.62960829,111610.0,111600.0,0.09541289]
[1757052651297,0.63060829,111610.0,111600.0,0.09441289]
[1757052651898,0.63060829,111610.0,111600.0,0.09341289]
[1757052652199,0.63160829,111610.0,111600.0,0.09341289]
[1757052652698,0.63150829,111610.0,111600.0,0.09341289]
[1757052653099,0.63160829,111610.0,111600.0,0.09341289]
[1757052655301,0.63160829,111610.0,111600.0,0.09337289]
[1757052658301,0.39686,111610.0,111600.0,0.09337289]
[1757052658500,0.63160829,111610.0,111600.0,0.09337289]
[1757052672211,0.27080829,111610.0,111600.0,0.09337289]
[1757052672807,0.63160829,111610.0,111600.0,0.09337289]
[1757052674607,0.27080829,111610.0,111600.0,0.09337289]
[1757052674813,0.63160829,111610.0,111600.0,0.09337289]
[1757052676614,0.27080829,111610.0,111600.0,0.09337289]
[1757052676917,0.63160829,111610.0,111600.0,0.09337289]
[1757052679402,0.39686,111610.0,111600.0,0.09337289]
[1757052679602,0.30031454,111610.0,111600.0,0.20587253]
[1757052680014,0.66111454,111610.0,111600.0,0.20587253]
[1757052680615,0.02399,111610.0,111600.0,1.30714161]
[1757052680812,0.02399,111610.0,111600.0,1.55544197]
[1757052681115,0.02399,111610.0,111600.0,1.38077983]
[1757052681318,0.28824454,111610.0,111600.0,1.02693289]
[1757052681517,0.28824454,111610.0,111600.0,1.29118743]
[1757052681717,0.28724454,111610.0,111600.0,1.29218743]
[1757052682120,0.28724454,111610.0,111600.0,1.29118743]
[1757052682317,0.28724454,111610.0,111600.0,1.29218743]
[1757052682617,0.28724454,111610.0,111600.0,0.93138743]
[1757052682812,0.28624454,111610.0,111600.0,0.69138743]
[1757052683019,0.28624454,111610.0,111600.0,0.69238743]
[1757052684318,0.28624454,111610.0,111600.0,0.98238743]
[1757052684624,0.28624454,111610.0,111600.0,0.95238743]
[1757052684811,0.28624454,111610.0,111600.0,0.70238743]
[1757052685623,0.28624454,111610.0,111600.0,0.73488707]
[1757052686120,0.28624454,111610.0,111600.0,1.06488707]
[1757052686415,0.28624454,111610.0,111600.0,0.80488707]
[1757052686816,0.28624454,111610.0,111600.0,0.73488707]
[1757052687123,0.28624454,111610.0,111600.0,0.80488707]
[1757052688023,0.28624454,111610.0,111600.0,0.73488707]
[1757052688224,0.28624454,111610.0,111600.0,1.05488707]
[1757052689923,0.28624454,111610.0,111600.0,1.87580707]
[1757052689924,0.02199,111610.0,111600.0,1.87580707]
[1757052690117,0.28624454,111610.0,111600.0,1.55580707]
[1757052690322,0.28624454,111610.0,111600.0,0.81488707]
[1757052690522,0.28624454,111610.0,111600.0,1.63564707]
[1757052690926,0.28624454,111610.0,111600.0,1.63464707]
[1757052691225,0.28624454,111610.0,111600.0,1.63364707]
[1757052691725,0.28624454,111610.0,111600.0,1.91364707]
[1757052692020,0.28624454,111610.0,111600.0,1.60364707]
[1757052692226,0.28624454,111610.0,111600.0,1.55364707]
[1757052692424,0.28624454,111610.0,111600.0,1.59364707]
[1757052692625,0.28624454,111610.0,111600.0,1.89364707]
[1757052692824,0.28624454,111610.0,111600.0,1.59364707]
[1757052693420,0.30008454,111610.0,111600.0,0.48288707]
[1757052693627,0.30008454,111610.0,111600.0,1.35328707]
[1757052693926,0.30008454,111610.0,111600.0,1.08903253]
[1757052694726,0.30008454,111610.0,111600.0,0.26863253]
[1757052695024,0.30008454,111610.0,111600.0,1.08887253]
[1757052695923,0.30008454,111610.0,111600.0,1.35312707]
[1757052696323,0.30008454,111610.0,111600.0,1.08887253]
[1757052696522,0.30008454,111610.0,111600.0,1.35312707]
[1757052697429,0.30008454,111610.0,111600.0,0.53288707]
[1757052697630,0.03583,111610.0,111600.0,1.35280707]
[1757052697828,0.30008454,111610.0,111600.0,1.35280707]
[1757052698130,0.03583,111610.0,111600.0,1.35280707]
[1757052698430,0.30008454,111610.0,111600.0,1.35280707]
[1757052699128,0.03583,111610.0,111600.0,1.08855253]
[1757052699328,0.30008454,111610.0,111600.0,1.08855253]
[1757052704145,0.30008454,111610.0,111600.0,1.07579253]
[1757052704745,0.30008454,111610.0,111600.0,1.07519253]
[1757052705446,0.30008454,111610.0,111600.0,0.25587253]
[1757052705644,0.30008454,111610.0,111600.0,1.07507253]
[1757052706746,0.03583,111610.0,111600.0,1.08881253]
[1757052706946,0.30008454,111610.0,111600.0,1.08881253]
[1757052711253,0.30008454,111610.0,111600.0,1.35306707]
[1757052712652,0.29998454,111610.0,111600.0,1.35306707]
[1757052712952,0.30008454,111610.0,111600.0,1.35306707]
[1757052719753,0.03583,111610.0,111600.0,1.24056743]
[1757052719952,0.28634454,111610.0,111600.0,1.24056743]
[1757052720451,0.28634454,111610.0,111600.0,0.97631289]
[1757052720651,0.28634454,111610.0,111600.0,1.24056743]
[1757052720955,0.0001,111610.0,111600.0,2.12562197]
[1757052721158,0.28726454,111620.0,111610.0,0.03654]
[1757052721454,0.28716454,111620.0,111610.0,0.65079454]
[1757052721658,0.28726454,111620.0,111610.0,0.63079454]
[1757052722259,0.28726454,111620.0,111610.0,0.32079454]
[1757052722459,0.28926454,111620.0,111610.0,0.32079454]
[1757052723063,0.28926454,111620.0,111610.0,0.30079454]
[1757052723362,0.28926454,111620.0,111610.0,0.32079454]
[1757052723664,0.02491,111620.0,111610.0,1.08117894]
[1757052723855,0.02491,111620.0,111610.0,1.19367858]
[1757052724157,0.02491,111620.0,111610.0,1.21466929]
[1757052724362,0.002,111620.0,111610.0,1.21466929]
[1757052724955,0.001,111620.0,111610.0,1.21566929]
[1757052725161,0.001,111620.0,111610.0,1.10316965]
[1757052725759,0.28726454,111630.0,111620.0,0.01374]
[1757052725954,0.28716454,111630.0,111620.0,1.13939454]
[1757052726160,0.28726454,111630.0,111620.0,1.13939454]
[1757052726463,0.28726454,111630.0,111620.0,1.48939454]
[1757052726863,0.28726454,111630.0,111620.0,1.13939454]
[1757052727563,0.28726454,111630.0,111620.0,1.47939454]
[1757052727762,0.28726454,111630.0,111620.0,1.11939454]
[1757052728064,0.28726454,111630.0,111620.0,1.44939454]
[1757052728364,0.28726454,111630.0,111620.0,1.81019454]
[1757052728962,0.28726454,111630.0,111620.0,1.5091413]
[1757052729265,0.28726454,111630.0,111620.0,1.8591413]
[1757052729465,0.0001,111630.0,111620.0,1.9487177]
[1757052730466,0.0001,111630.0,111620.0,1.9497177]
[1757052730658,0.0001,111630.0,111620.0,1.9507177]
[1757052733864,0.0001,111630.0,111620.0,2.06321734]
[1757052734968,0.0001,111630.0,111620.0,1.71321734]
[1757052735170,0.0001,111630.0,111620.0,1.8407177]
[1757052735363,0.0001,111630.0,111620.0,1.5807177]
[1757052735564,0.0001,111630.0,111620.0,1.9407177]
[1757052736866,0.0001,111630.0,111620.0,1.6005577]
[1757052737056,0.02301,111630.0,111620.0,1.0821177]
[1757052737259,0.02301,111630.0,111620.0,1.9005577]
[1757052737872,0.02301,111630.0,111620.0,1.0821177]
[1757052738168,0.02301,111630.0,111620.0,1.9005577]
[1757052738773,0.02301,111630.0,111620.0,1.0821177]
[1757052738965,0.02301,111630.0,111620.0,1.9005577]
[1757052739865,0.02301,111630.0,111620.0,0.7621177]
[1757052740170,0.02301,111630.0,111620.0,1.9405577]
[1757052741475,0.02301,111630.0,111620.0,1.67630316]
[1757052742575,0.02301,111630.0,111620.0,1.31630316]
[1757052742766,0.02291,111630.0,111620.0,1.31630316]
[1757052742967,0.02301,111630.0,111620.0,1.31630316]
[1757052743167,0.02301,111630.0,111620.0,1.63630316]
[1757052743476,0.02301,111630.0,111620.0,1.31630316]
[1757052743669,0.02301,111630.0,111620.0,1.69630316]
[1757052744068,0.02301,111630.0,111620.0,1.31630316]
[1757052744368,0.02301,111630.0,111620.0,1.64630316]
[1757052744574,0.02301,111630.0,111620.0,1.31630316]
[1757052744874,0.02301,111630.0,111620.0,1.8088028]
[1757052745276,0.02301,111630.0,111620.0,1.69630316]
[1757052746077,0.02301,111630.0,111620.0,1.33550316]
[1757052746276,0.02301,111630.0,111620.0,0.49786316]
[1757052746575,0.02301,111630.0,111620.0,1.22664676]
[1757052747277,0.02301,111630.0,111620.0,1.55664676]
[1757052747477,0.02301,111630.0,111620.0,1.55564676]
[1757052747677,0.02301,111630.0,111620.0,1.55464676]
[1757052747879,0.02301,111630.0,111620.0,1.22464676]
[1757052748273,0.02301,111630.0,111620.0,1.57464676]
[1757052749280,0.02301,111630.0,111620.0,1.22464676]
[1757052749481,0.02301,111630.0,111620.0,1.53464676]
[1757052750081,0.02301,111630.0,111620.0,1.22464676]
[1757052750680,0.02301,111630.0,111620.0,1.58464676]
[1757052753485,0.02301,111630.0,111620.0,1.22456676]
[1757052754185,0.02301,111630.0,111620.0,1.3370664]
[1757052758491,0.02301,111630.0,111620.0,1.22456676]
[1757052758790,0.02301,111630.0,111620.0,0.86376676]
[1757052758981,0.02301,111630.0,111620.0,1.22456676]
[1757052760590,0.0001,111630.0,111620.0,1.24456676]
[1757052760788,0.0001,111630.0,111620.0,1.66414316]
[1757052763095,0.0001,111630.0,111620.0,1.89889167]
[1757052763392,0.0001,111630.0,111620.0,1.89989167]
[1757052763595,0.0001,111630.0,111620.0,1.90089167]
[1757052764189,0.0001,111630.0,111620.0,1.89989167]
[1757052764392,0.0001,111630.0,111620.0,1.90089167]
[1757052766090,0.26994851,111630.0,111620.0,0.96951854]
[1757052767189,0.0352,111630.0,111620.0,0.96851854]
[1757052767386,0.0352,111630.0,111620.0,0.96751854]
[1757052769098,0.0352,111630.0,111620.0,0.97649317]
[1757052769499,0.0352,111630.0,111620.0,0.96751854]
[1757052771299,0.02184,111630.0,111620.0,0.96751854]
[1757052772101,0.02184,111630.0,111620.0,0.97628665]
[1757052772296,0.02184,111630.0,111620.0,0.86346811]
[1757052772702,0.02174,111630.0,111620.0,0.86346811]
[1757052773101,0.02184,111630.0,111620.0,0.86346811]
[1757052775606,0.02184,111630.0,111620.0,1.22426811]
[1757052776704,0.02184,111630.0,111620.0,1.55426811]
[1757052777000,0.02184,111630.0,111620.0,1.2155]
[1757052779001,0.02184,111630.0,111620.0,1.22431436]
[1757052779599,0.02184,111630.0,111620.0,1.3371329]
[1757052781605,0.02184,111630.0,111620.0,1.6871329]
[1757052781810,0.02184,111630.0,111620.0,1.7171329]
[1757052782011,0.02184,111630.0,111620.0,1.32831854]
[1757052782212,0.02184,111630.0,111620.0,1.32831769]
[1757052782512,0.02184,111630.0,111620.0,1.33747676]
[1757052783608,0.02184,111630.0,111620.0,1.70747676]
[1757052784016,0.02184,111630.0,111620.0,1.69705316]
[1757052784217,0.0001,111630.0,111620.0,1.90180167]
[1757052784407,0.0001,111630.0,111620.0,1.78898313]
[1757052784607,0.0001,111630.0,111620.0,1.90175022]
[1757052785814,0.0001,111630.0,111620.0,1.90375022]
[1757052789920,0.0001,111630.0,111620.0,1.66900171]
[1757052790122,0.0001,111630.0,111620.0,1.90375022]
[1757052790517,0.0001,111630.0,111620.0,1.79098313]
[1757052794620,0.0001,111630.0,111620.0,1.55098313]
[1757052794926,0.0001,111630.0,111620.0,1.81098313]
[1757052797226,0.0001,111630.0,111620.0,1.57098313]
[1757052797429,0.0001,111630.0,111620.0,1.89098313]
[1757052798323,0.0001,111630.0,111620.0,1.31623462]
[1757052798530,0.0001,111630.0,111620.0,1.63623462]
[1757052798729,0.0001,111630.0,111620.0,1.87098313]
[1757052801424,0.0001,111630.0,111620.0,1.90030144]
[1757052802834,0.28540682,111640.0,111630.0,0.03624]
[1757052803133,0.28530682,111640.0,111630.0,0.77383196]
[1757052803330,0.2501,111640.0,111630.0,1.22420306]
[1757052803529,0.0001,111640.0,111630.0,1.48826988]
[1757052803728,0.0001,111640.0,111630.0,1.11147792]
[1757052804437,0.0001,111640.0,111630.0,1.37554474]
[1757052804631,0.0001,111640.0,111630.0,1.11147792]
[1757052806532,0.0001,111640.0,111630.0,0.5274111]
[1757052806736,0.0001,111640.0,111630.0,1.12147792]
[1757052807138,0.0001,111640.0,111630.0,1.49958962]
[1757052807438,0.0001,111640.0,111630.0,1.61231476]
[1757052812244,0.0001,111640.0,111630.0,1.70188316]
[1757052812444,0.0001,111640.0,111630.0,2.03188316]
[1757052814341,0.0001,111640.0,111630.0,1.72188316]
[1757052814744,0.0001,111640.0,111630.0,1.98231476]
[1757052816244,0.0001,111640.0,111630.0,1.86958962]
[1757052818754,0.0001,111640.0,111630.0,1.95915802]
[1757052819047,0.0001,111640.0,111630.0,1.58915802]
[1757052819343,0.0001,111640.0,111630.0,1.60915802]
[1757052819548,0.0001,111640.0,111630.0,1.84915802]
[1757052819751,0.0001,111640.0,111630.0,2.18322484]
[1757052819944,0.0001,111640.0,111630.0,1.85322484]
[1757052820450,0.0001,111640.0,111630.0,2.16322484]
[1757052820945,0.0001,111640.0,111630.0,1.89915802]
[1757052821249,0.0001,111640.0,111630.0,2.01188316]
[1757052821648,0.0001,111640.0,111630.0,1.43781634]
[1757052821854,0.0001,111640.0,111630.0,2.04188316]
[1757052824056,0.0001,111640.0,111630.0,1.43781634]
[1757052824246,0.0001,111640.0,111630.0,1.74781634]
[1757052824442,0.0001,111640.0,111630.0,2.01188316]
[1757052824646,0.0001,111640.0,111630.0,1.64231476]
[1757052824853,0.0001,111640.0,111630.0,1.83934962]
[1757052825847,0.0001,111640.0,111630.0,1.02190962]
[1757052826151,0.0001,111640.0,111630.0,1.84930962]
[1757052826753,0.0001,111640.0,111630.0,1.03190962]
[1757052826953,0.0001,111640.0,111630.0,1.84930962]
[1757052827653,0.0001,111640.0,111630.0,1.2352428]
[1757052827853,0.0001,111640.0,111630.0,1.83930962]
[1757052830358,0.0001,111640.0,111630.0,1.83926962]
[1757052831558,0.0001,111640.0,111630.0,1.95199476]
[1757052832757,0.02285,111640.0,111630.0,1.95199476]
[1757052832958,0.02295,111640.0,111630.0,1.95199476]
[1757052835964,0.02295,111640.0,111630.0,1.83926962]
[1757052836767,0.02295,111640.0,111630.0,1.47846962]
[1757052836978,0.02295,111640.0,111630.0,1.83926962]
[1757052839583,0.0001,111640.0,111630.0,1.83926962]
[1757052841983,0.0001,111640.0,111630.0,1.92883792]
[1757052843181,0.0001,111640.0,111630.0,1.83926962]
[1757052843382,0.0001,111640.0,111630.0,1.62926962]
[1757052843577,0.0001,111640.0,111630.0,1.63906962]
[1757052843779,0.0001,111640.0,111630.0,1.87906962]
[1757052844185,0.0001,111640.0,111630.0,1.99184222]
[1757052844982,0.0001,111640.0,111630.0,1.63104222]
[1757052845289,0.0001,111640.0,111630.0,1.99184222]
[1757052846689,0.0001,111640.0,111630.0,2.08141052]
[1757052847387,0.0001,111640.0,111630.0,1.96863792]
[1757052849889,0.28701682,111650.0,111640.0,0.01281]
[1757052850092,0.28691682,111650.0,111640.0,0.54115327]
[1757052850390,0.28701682,111650.0,111640.0,0.79115327]
[1757052850688,0.28701682,111650.0,111640.0,0.41115327]
[1757052850887,0.28701682,111650.0,111640.0,0.79115327]
[1757052851086,0.28901682,111650.0,111640.0,0.41115327]
[1757052851286,0.02495,111650.0,111640.0,0.63837682]
[1757052851487,0.28901682,111650.0,111640.0,0.43837682]
[1757052851683,0.29001682,111650.0,111640.0,0.46837682]
[1757052851985,0.29001682,111650.0,111640.0,0.74793712]
[1757052851986,0.0031,111650.0,111640.0,0.74793712]
[1757052852893,0.0031,111650.0,111640.0,0.88151357]
[1757052853083,0.0031,111650.0,111640.0,1.22151357]
[1757052854085,0.0031,111650.0,111640.0,1.10873712]
[1757052857193,0.0031,111650.0,111640.0,1.22151357]
[1757052859899,0.003,111650.0,111640.0,1.47151357]
[1757052861499,0.003,111650.0,111640.0,1.4420813]
[1757052865495,0.003,111650.0,111640.0,1.1920813]
[1757052872002,0.003,111650.0,111640.0,1.07930485]
[1757052873707,0.0031,111650.0,111640.0,1.07930485]
[1757052874606,0.0031,111650.0,111640.0,1.89594485]
[1757052877408,0.0031,111650.0,111640.0,2.0087213]
[1757052877810,0.0031,111650.0,111640.0,1.89594485]
[1757052878004,0.0031,111650.0,111640.0,2.0085515]
[1757052879813,0.0031,111650.0,111640.0,1.1919115]
[1757052880014,0.0031,111650.0,111640.0,2.0084315]
[1757052880811,0.0031,111650.0,111640.0,1.89582485]
[1757052882608,0.0031,111650.0,111640.0,2.00850852]
[1757052887014,0.0031,111650.0,111640.0,1.89582485]
[1757052888118,0.0031,111650.0,111640.0,1.07930485]
[1757052888418,0.0031,111650.0,111640.0,1.89566485]
[1757052891410,0.0031,111650.0,111640.0,1.07930485]
[1757052891615,0.0031,111650.0,111640.0,1.89562485]
[1757052892914,0.0031,111650.0,111640.0,1.89558485]
[1757052901315,0.0001,111660.0,111650.0,0.0895522]
[1757052901521,0.0001,111670.0,111660.0,0.03459]
[1757052901721,0.3955,111680.0,111670.0,0.03459]
[1757052901920,0.3954,111680.0,111670.0,0.03459]
[1757052903430,0.3984,111680.0,111670.0,0.35459]
[1757052903632,0.63303455,111680.0,111670.0,0.35459]
[1757052904431,0.63703455,111680.0,111670.0,0.35459]
[1757052904832,0.4024,111680.0,111670.0,0.35459]
[1757052907032,0.4024,111680.0,111670.0,0.4278697]
[1757052909736,0.4024,111680.0,111670.0,0.1078697]
[1757052909929,0.4024,111680.0,111670.0,0.2578697]
[1757052910136,0.4024,111680.0,111670.0,0.4578697]
[1757052910330,0.4024,111680.0,111670.0,0.2478697]
[1757052910530,0.38904,111680.0,111670.0,0.1078697]
[1757052911632,0.007,111680.0,111670.0,0.4278697]
[1757052911834,0.007,111680.0,111670.0,0.71250425]
[1757052912337,0.02824,111680.0,111670.0,0.71250425]
[1757052912531,0.02824,111680.0,111670.0,0.8386697]
[1757052913143,0.02824,111680.0,111670.0,0.4686697]
[1757052913532,0.02824,111680.0,111670.0,0.7986697]
[1757052915140,0.02824,111680.0,111670.0,0.4886697]
[1757052915339,0.02824,111680.0,111670.0,0.8086697]
[1757052915743,0.02824,111680.0,111670.0,1.4344697]
[1757052915931,0.02824,111680.0,111670.0,1.6044697]
[1757052916138,0.02824,111680.0,111670.0,1.2844697]
[1757052916442,0.02824,111680.0,111670.0,1.6044697]
[1757052918739,0.02824,111680.0,111670.0,1.2844697]
[1757052919042,0.02824,111680.0,111670.0,1.6444697]
[1757052919340,0.02824,111680.0,111670.0,1.2844697]
[1757052919542,0.02824,111680.0,111670.0,1.6244697]
[1757052920242,0.02824,111680.0,111670.0,1.2844697]
[1757052920743,0.02824,111680.0,111670.0,1.6644697]
[1757052923540,0.02824,111680.0,111670.0,1.92834159]
[1757052924145,0.02824,111680.0,111670.0,1.86834159]
[1757052924337,0.02824,111680.0,111670.0,1.54834159]
[1757052924542,0.02824,111680.0,111670.0,1.87834159]
[1757052924739,0.02824,111680.0,111670.0,1.91834159]
[1757052925043,0.02824,111680.0,111670.0,1.82834159]
[1757052925643,0.02824,111680.0,111670.0,1.56834159]
[1757052925843,0.02824,111680.0,111670.0,1.90834159]
[1757052926243,0.007,111680.0,111670.0,1.90834159]
[1757052930650,0.007,111680.0,111670.0,1.99787689]
[1757052930850,0.007,111680.0,111670.0,2.24787689]
[1757052932039,0.0001,111690.0,111680.0,0.03641]
[1757052932241,0.02163,111700.0,111690.0,0.03641]
[1757052932449,0.02163,111700.0,111690.0,1.45576189]
[1757052932450,0.02153,111700.0,111690.0,1.45576189]
[1757052933045,0.02153,111700.0,111690.0,1.11576189]
[1757052933245,0.02153,111700.0,111690.0,1.28576189]
[1757052933445,0.02153,111700.0,111690.0,1.11576189]
[1757052933646,0.02153,111700.0,111690.0,1.49576189]
[1757052933846,0.02153,111700.0,111690.0,1.28576189]
[1757052934047,0.02353,111700.0,111690.0,1.28576189]
[1757052935050,0.004,111700.0,111690.0,1.46576189]
[1757052935355,0.004,111700.0,111690.0,1.25576189]
[1757052935552,0.004,111700.0,111690.0,1.43576189]
[1757052936352,0.26787189,111700.0,111690.0,1.43576189]
[1757052936554,0.004,111700.0,111690.0,1.43576189]
[1757052936853,0.26787189,111700.0,111690.0,1.43576189]
[1757052937654,0.28940189,111700.0,111690.0,0.30028189]
[1757052937855,0.28940189,111700.0,111690.0,1.48564189]
[1757052938154,0.02553,111700.0,111690.0,1.48564189]
[1757052939054,0.02553,111700.0,111690.0,0.49028189]
[1757052939256,0.02553,111700.0,111690.0,1.30560189]
[1757052939650,0.28940189,111700.0,111690.0,1.30560189]
[1757052940751,0.004,111700.0,111690.0,1.30560189]
[1757052942157,0.004,111700.0,111690.0,2.01979318]
[1757052942853,0.28940189,111700.0,111690.0,1.04165]
[1757052943159,0.03901,111700.0,111690.0,0.85165]
[1757052943360,0.30288189,111700.0,111690.0,1.21245]
[1757052943553,0.30288189,111700.0,111690.0,1.54245]
[1757052944157,0.30288189,111700.0,111690.0,1.21245]
[1757052944359,0.30288189,111700.0,111690.0,1.53245]
[1757052945763,0.30288189,111700.0,111690.0,1.79632189]
[1757052946264,0.28940189,111700.0,111690.0,1.79632189]
[1757052946865,0.02553,111700.0,111690.0,1.47632189]
[1757052947163,0.28940189,111700.0,111690.0,1.85632189]
[1757052947364,0.30231189,111700.0,111690.0,0.39721]
[1757052947554,0.30231189,111700.0,111690.0,1.21233]
[1757052949559,0.30231189,111700.0,111690.0,1.54233]
[1757052949756,0.30231189,111700.0,111690.0,1.47620189]
[1757052950167,0.30231189,111700.0,111690.0,1.78620189]
[1757052950365,0.30231189,111700.0,111690.0,1.47620189]
[1757052950566,0.30231189,111700.0,111690.0,1.81620189]
[1757052951067,0.30231189,111700.0,111690.0,1.47620189]
[1757052951766,0.30231189,111700.0,111690.0,1.79620189]
[1757052952166,0.30231189,111700.0,111690.0,1.55620189]
[1757052952468,0.30231189,111700.0,111690.0,0.47721]
[1757052952669,0.30231189,111700.0,111690.0,1.29225]
[1757052953570,0.30231189,111700.0,111690.0,1.21225]
[1757052954468,0.30231189,111700.0,111690.0,1.53225]
[1757052954663,0.30231189,111700.0,111690.0,1.21225]
[1757052954864,0.30231189,111700.0,111690.0,1.80612189]
[1757052955274,0.30231189,111700.0,111690.0,1.47612189]
[1757052955774,0.30231189,111700.0,111690.0,1.83612189]
[1757052956274,0.30231189,111700.0,111690.0,1.47604189]
[1757052956476,0.30231189,111700.0,111690.0,1.55604189]
[1757052956876,0.30231189,111700.0,111690.0,1.47604189]
[1757052957177,0.30231189,111700.0,111690.0,0.66108189]
[1757052957376,0.30231189,111700.0,111690.0,1.21213]
[1757052957878,0.30231189,111700.0,111690.0,1.47600189]
[1757052958276,0.30231189,111700.0,111690.0,1.11520189]
[1757052959178,0.30231189,111700.0,111690.0,0.30028189]
[1757052959374,0.30231189,111700.0,111690.0,1.11520189]
[1757052961580,0.30231189,111700.0,111690.0,1.79600189]
[1757052961879,0.28940189,111700.0,111690.0,1.47600189]
[1757052962067,0.02553,111700.0,111690.0,1.47600189]
[1757052962274,0.004,111700.0,111690.0,1.84600189]
[1757052962478,0.004,111700.0,111690.0,1.47600189]
[1757052962678,0.004,111700.0,111690.0,2.15552129]
[1757052963376,0.004,111700.0,111690.0,1.5516494]
[1757052963584,0.004,111700.0,111690.0,2.16552129]
[1757052964678,0.004,111700.0,111690.0,1.91552129]
[1757052964880,0.004,111700.0,111690.0,2.42939318]
[1757052965380,0.004,111700.0,111690.0,2.54209301]